Cogmind - Beta 13 @@@ ROGUE MODE // 2024.04.21 @ 23:11:51 Player: Haddoc Result: Destroyed by G-34 Mercenary with Small Laser Performance ------------- Evolutions (0) 0 Regions Visited (1) 200 Robots Destroyed (10) 50 Value Destroyed (302) 302 Prototype IDs (1) 20 Alien Tech Used (0) 0 Bonus (0) 0 TOTAL SCORE: 572 Bonus ------- None Cogmind --------- Core Integrity 0/250 Matter 238/300 Energy 100/100 System Corruption 10% Temperature Cool (6) Movement Core (400) Ox7 Location -10/Materials Parts ------- > --- POWER (1) -------- (None) > --- PROPULSION (2) --- (None) > --- UTILITY (2) ------ Large Storage Unit Signal Interpreter > --- WEAPON (2) ------- Heavy Assault Rifle > --- INVENTORY (15) --- Heavy Ion Engine Aluminum Leg Aluminum Leg Small Storage Unit Improved Terrain Scanner Propulsion Shielding Datajack Maul Peak State ------------ > --- POWER ------------ Heavy Ion Engine > --- PROPULSION ------- Compact Wheel Compact Wheel > --- UTILITY ---------- Small Storage Unit Small Storage Unit > --- WEAPON ----------- EMP Blaster EMP Blaster > --- INVENTORY -------- Light Ion Engine Heavy Ion Engine Aluminum Leg Aluminum Leg Improved Terrain Scanner Light Assault Rifle [Rating: 12] Favorites ----------- Power Heavy Ion Engine Engine Heavy Ion Engine Propulsion Compact Wheel Treads Light Treads Wheel Compact Wheel Utility Small Storage Unit Storage Small Storage Unit Processor Signal Interpreter Weapon EMP Blaster Energy Gun Backup Laser I Ballistic Gun Assault Rifle Launcher EMP Blaster Build | -11 -10 ------- Run | Yrd Mat Slots Evolved . | . . Power . | . . Propulsion . | . . Utility . | . . Weapon . | . . Parts Attached 19 | 9 10 Power 3 | 1 2 Engine 3 | 1 2 Core . | . . Reactor . | . . Propulsion 4 | 4 . Treads 1 | 1 . Leg . | . . Wheel 3 | 3 . Hover . | . . Flight . | . . Utility 4 | 2 2 Device . | . . Storage 3 | 2 1 Processor 1 | . 1 Hackware . | . . Protection . | . . Artifact . | . . Weapon 8 | 2 6 Energy Gun . | . . Energy Cannon . | . . Ballistic Gun 3 | 2 1 Ballistic Cannon . | . . Launcher 5 | . 5 Special Weapon . | . . Impact Weapon . | . . Slashing Weapon . | . . Piercing Weapon . | . . Special Melee Weapon . | . . Unidentified Prototypes 1 | . 1 Corrupted Parts 1 | . 1 System Corruption 8 | . 8 Parts Lost 3 | . 3 Power 1 | . 1 Propulsion 1 | . 1 Utility . | . . Weapon 1 | . 1 Highest Loss Streak 2 | . 2 To Critical Strikes . | . . Average Slot Usage (%) 81 | . 81 Engine 12 | . 12 Wheel 23 | . 23 Storage 17 | . 17 Processor 9 | . 9 Energy Gun 3 | . 3 Ballistic Gun 1 | . 1 Launcher 11 | . 11 Naked Turns . | . . Heaviest Build 33 | 18 33 Greatest Support 32 | 32 32 Greatest Overweight (x) 9 | 1 9 Average Overweight (x) . | . . Largest Inventory Capacity 15 | 8 15 Average Capacity 11 | 7 13 Most Carried 10 | 6 10 Average Carried 6 | 3 7 Final Capacity 15 | 8 15 Final Carried 8 | 6 8 Class Distribution -------------------- 100% | Mutant Dominant Class ---------------- Mutant | -10/Materials Resources | -11 -10 ----------- Run | Yrd Mat Matter Collected 448 | 290 158 Remotely . | . . Salvage Created 512 | 100 412 Parts 20 | 4 16 Haulers Intercepted . | . . Recyclers Shooed 1 | 1 . Parts Field Recycled . | . . Retrieved Matter . | . . Parts Self-Destructed . | . . Prevented . | . . Kills | -11 -10 ------- Run | Yrd Mat Combat Hostiles Destroyed 6 | . 6 Guns 1 | . 1 AOE 5 | . 5 Classes Destroyed 4 | 2 2 Tunneler 1 | 1 . Recycler 2 | 1 1 Watcher 1 | . 1 Grunt 6 | . 6 Best Kill Streak 4 | 2 4 Combat Bots Only 3 | . 3 Max Kills in Single Turn 4 | 1 4 Gunslinging . | . . Exploded 3 | . 3 Melee . | . . Uniques/NPCs Destroyed . | . . Combat | -11 -10 -------- Run | Yrd Mat Hostile Shots Fired 50 | . 50 Missed 10 | . 10 Damage Taken 681 | . 681 Core 254 | . 254 Absorbed by Shields . | . . Regen/Repaired (Parts) 34 | . 34 Core Remaining (%) 100 | 100 . Volleys Fired 28 | 8 20 Largest 2 | 2 2 Hottest 66 | 40 66 Shots Fired 43 | 16 27 Gun 27 | 16 11 Cannon . | . . Launcher 16 | . 16 Special . | . . Kinetic 22 | 16 6 Thermal 5 | . 5 Explosive . | . . Electromagnetic 16 | . 16 Robot Hit Streak 4 | 4 4 Robot Miss Streak 2 | 2 2 Penetration Max . | . . Secondary Targets . | . . Shots Hit Robots 23 | 10 13 Core Hits 17 | 5 12 Critical Kills . | . . Critical Parts Destroyed . | . . Critical Strikes . | . . Melee Attacks . | . . Impact . | . . Slashing . | . . Piercing . | . . Sneak Attacks . | . . Combat Hostiles . | . . Follow-up Attacks . | . . Damage Inflicted 695 | 106 589 Guns 215 | 106 109 Cannons . | . . Explosions 479 | . 479 Melee . | . . Ramming 1 | . 1 Kinetic 185 | 106 79 Thermal 106 | . 106 Explosive . | . . Electromagnetic 403 | . 403 Impact . | . . Slashing . | . . Piercing . | . . Highest Corruption 10 | . 10 Average Corruption 8 | . 8 Corruption Purged . | . . Corruption Blocked . | . . Effects 15 | . 15 Message Errors 3 | . 3 Matter Fused 3 | . 3 Heat Flow Errors 1 | . 1 Parts Rejected 3 | . 3 Misfires 2 | . 2 Alerts 1 | . 1 Weapon Failures 2 | . 2 Overload Shots . | . . Overflow Damage 15 | . 15 Projectiles . | . . Explosions 15 | . 15 Melee . | . . Knockbacks . | . . Impact . | . . Kinetic . | . . Secondary . | . . Self-Inflicted Damage 178 | . 178 Shots 9 | . 9 Rammed 2 | . 2 Targets Rammed 2 | . 2 Kicked . | . . Crushed . | . . Highest Temperature 192 | . 192 Average Temperature 36 | . 36 Received Heat Transfer 285 | . 285 Siege Activations . | . . Robots Corrupted . | . . Combat Hostiles . | . . Parts Fried . | . . Impact Corruptions . | . . Robots Melted . | . . Combat Hostiles . | . . Parts Melted 1 | . 1 Heat Transferred 261 | . 261 Parts Sabotaged . | . . Parts Stolen . | . . Parts Stripped . | . . Power Chain Reactions 4 | . 4 Alert | -11 -10 ------- Run | Yrd Mat Peak Influence 276 | 10 276 Initial 6 | . 6 Average 95 | 4 120 Maximum Alert Level 1 | . 1 Low Security (%) 82 | 100 77 Level 1 17 | . 22 Level 2 . | . . Level 3 . | . . Level 4 . | . . Level 5 . | . . High Security . | . . Max Security . | . . Squads Dispatched 1 | . 1 Investigation 1 | . 1 Extermination . | . . Reinforcement . | . . Assault . | . . Garrison . | . . Intercept . | . . Searches Triggered . | . . Construction Impeded . | . . Haulers Reinforced . | . . Active Scanning Responses . | . . Cargo Convoy Interrupts . | . . Stealth | -11 -10 --------- Run | Yrd Mat Distress Signals 2 | . 2 Communications Jammed . | . . Distress Signals . | . . Times Spotted 12 | . 12 Peak Tracking Total 4 | . 4 Tactical Retreats 1 | . 1 Traps | -11 -10 ------- Run | Yrd Mat Traps Triggered 2 | . 2 Indirectly 2 | . 2 Trap Hack Attempts . | . . Triggered . | . . Disarmed . | . . Reprogrammed . | . . Reused . | . . Traps Extracted . | . . Installed . | . . Triggered . | . . Machines | -11 -10 ---------- Run | Yrd Mat Machines Disabled 5 | . 5 Max in Single Turn 2 | . 2 Machines Repaired . | . . Machines Dismantled . | . . Machines Sabotaged . | . . Overloaded Fab Kills . | . . Hacking | -11 -10 --------- Run | Yrd Mat Machines Accessed 2 | . 2 Terminals 1 | . 1 Fabricators . | . . Repair Stations 1 | . 1 Recycling Units . | . . Scanalyzers . | . . Garrison Access . | . . Total Hacks 6 | . 6 Successful 4 | . 4 Failed 2 | . 2 Catastrophic 1 | . 1 Database Lockouts . | . . Manual 2 | . 2 Terminals 3 | . 3 Fabricators . | . . Repair Stations 3 | . 3 Recycling Units . | . . Scanalyzers . | . . Garrison Access . | . . Terminal Hacks 1 | . 1 Registered Prototypes 1 | . 1 Fabricator Hacks . | . . Repair Station Hacks 3 | . 3 Scan Component 1 | . 1 Repair 1 | . 1 Refit 1 | . 1 Recycling Unit Hacks . | . . Scanalyzer . | . . Garrison Access Hacks . | . . Unauthorized Hacks . | . . Terminals . | . . Fabricators . | . . Repair Stations . | . . Recycling Units . | . . Scanalyzers . | . . Garrison Access . | . . Data Cores Recovered . | . . Used . | . . Hacking Detections 2 | . 2 Full Trace Events 1 | . 1 Feedback Events . | . . Feedback Blocked . | . . Robot Schematics Acquired . | . . Robots Built . | . . Authchips . | . . Time . | . . Total Robot Build Rating . | . . Part Schematics Acquired . | . . Parts Built . | . . Authchips . | . . Time . | . . Total Part Build Rating . | . . Parts Repaired 1 | . 1 Time 32 | . 32 Parts Recycled . | . . Recycled Matter . | . . Retrieved Matter . | . . Retrieved Components . | . . Parts Scanalyzed . | . . Part Schematics Acquired . | . . Parts Damaged . | . . Bothacking | -11 -10 ------------ Run | Yrd Mat Used RIF Installer . | . . Robots Hacked . | . . Non-combat . | . . Combat . | . . Robot Hacks Applied . | . . Relay Couplers Released . | . . Fabnet Peak Effective % . | . . Robots Rewired . | . . Allies Hacked . | . . Hacks Repelled . | . . Allies | -11 -10 -------- Run | Yrd Mat Total Allies . | . . Largest Group . | . . Highest-Rated Group . | . . Highest-Rated Ally . | . . Total Orders . | . . Ally Attacks . | . . Total Damage . | . . Kills . | . . Allies Corrupted . | . . Allies Melted . | . . Intel | -11 -10 ------- Run | Yrd Mat Robot Analysis Total . | . . Derelict Logs Recovered . | . . Drone Launches . | . . Drone Recoveries . | . . Exploration | -11 -10 ------------- Run | Yrd Mat Turns Passed 561 | 122 439 Spaces Moved 366 | 84 282 Core 22 | 15 7 Treads . | . . Legs . | . . Wheels 344 | 69 275 Hover . | . . Flight . | . . Fastest Speed 50 | 50 100 Average Speed 105 | 91 109 Slowest Speed 500 | 115 500 Overloaded Moves . | . . Propulsion Burnouts . | . . Robots Hopped . | . . Cave-ins Triggered . | . . Exploration Rate (%) 25 | 6 44 Regions Visited 1 Branch Regions . Pre-discovered Areas . | . . Known Exits Taken . | . . Unknown Exits Taken 1 | 1 . Scrap Searched . | . . Spaces Dug . | . . Terrain Destroyed 21 | . 21 Melee . | . . Projectile . | . . AOE 21 | . 21 Terrain Rammed . | . . Walls Destroyed . | . . Machines Disabled . | . . Actions | -11 -10 --------- Run | Yrd Mat Total 501 | 113 388 Wait 45 | . 45 Move 365 | 83 282 Hop . | . . Pick Up 28 | 13 15 Fast Attach . | . . Attach 12 | 7 5 Detach 2 | . 2 Swap 7 | 2 5 Drop 12 | . 12 Fire 28 | 8 20 Melee . | . . Ram 2 | . 2 Kick . | . . Crush . | . . Escape Stasis . | . . Rewire . | . . Trap . | . . Miscellaneous . | . . Route ------- -11/Scrapyard -10/Materials (discovered 2 exits: *Mat / [*Min]) History --------- Turn | Location | Event 10 | -11/Scrapyard | Discovered new exit (range 16) 123 | -11/Scrapyard | Entered Materials 256 | -10/Materials | Discovered new exit (range 16) 262 | -10/Materials | System corruption reached 10% 271 | -10/Materials | Identified exit to Materials 301 | -10/Materials | Build established: Mutant 404 | -10/Materials | Repaired EMP Blaster 494 | -10/Materials | Discovered new exit (range 9) 500 | -10/Materials | Core integrity fell below 50% 551 | -10/Materials | Core integrity fell below 20% 562 | -10/Materials | Destroyed by G-34 Mercenary with Small Laser Last Messages --------------- 00502_ Acquired Maul. 00504_ Acquired EMP Blaster. 00509_ System corrupted: Com. Wheel rejected. 00518_ Acquired Hvy. Assault Rifle. 00524_ EMP Blaster destroyed. 00526_ G-34 Mercenary IFF system glitched. 00531_ R-06 Scavenger collects EMP Blaster. 00532_ G-47 Trooper destroyed. 00534_ K-01 Serf collects debris. 00536_ R-06 Scavenger collects Imp. Heat Sink. 00537_ K-01 Serf collects debris. 00538_ System corrupted: Lgt. Ion Engine rejected. 00541_ R-06 Scavenger collects Corrupted Aluminum Leg. 00541_ K-01 Serf collects debris. 00542_ System corrupted: Hvy. Assault Rifle jammed. 00558_ Slammed into G-34 Mercenary. 00562_ Hvy. Assault Rifle broken. 00562_ Destabilizing: Short circuit. Map ----- +----------------------------------------------------+ | | | | | | | ?????????????????????????????????????????? | | ?????????????????????????????????????????? | | ?????????????????????????????????????????? | | ?????????????????????????????????????????? | | ?????????????????????????????????????????? | | ?????????????????????????????????????????? | | ?????????????????????????????????????????? | | ?????????????????????????????????????????? | | ?????????????????????????????????????????? | | ????????????#####????????????????????????? | | ????????????#"""#????????????????????????? | | ??????????##"|||"##??????????????????????? | | ??????????#"" ""#??????????????????????? | | ??????????# #??????????????????????? | | ??????????# < #??????????????????????? | | ??????????# #????????#?????????????? | | ??????????# #??????? +?????????????? | | ???????????# #??????? #??????????????? | | ????????????# #??????? #??????????????? | | ????????##### ####### #??????????????? | | ????????#]] ##?????????????? | | ????????#] % + ??????????? | | ????????#/= * @g #??????????????? | | ????????#// #### #######??????????????? | | ????????#[ #??# #??????????????????? | | ????????#[[ #??# #??????????????????? | | ????????#####??# " #??????????????????? | | ???????????????# "" #??????????????????? | | ???????????????#k #??????????????????? | | ???????????????# #??????????????????? | | ???????????????#####+##??????????????????? | | ???????????????????# ########????????????? | | ???????????#######?# # #????????????? | | ???????????# #?# # """ #????????????? | | ???????????# ### # """ #????????????? | | ???????????# / """ #?????#??????? | | ???????????# ### # #???? ???????? | | ???????????# ###%# ! #???? ???????? | | ???????????######### ########??? #?#?????? | | ?????????########### ##????????? # ?????? | | ?????????# T !! # ########### # ??????? | | ?????????# ! + ^ / ??????? | | ?????????# ! # ^ #???????? | | ?????????# = # """" #???????? | | ?????????###########^ "T"" #???????? | | ?????????# #?# #??????? | | ?????????# ### ##????????? | +----------------------------------------------------+ Best States ------------- Heat Dissipation 25 Energy Generation 14 Energy Capacity 280 Matter Stores 300 Matter Capacity 300 Sight Range 16 Terrain Scan Density 10 Evasion (%) 50 Recoil Reduction 1 Item Schematics ----------------- None Robot Schematics ------------------ None Fabricated ------------ Nothing Alien Tech Used ----------------- None Achievements -------------- None Challenges ------------ None Game ------ Seed BoreSignalDesublimator Manual? 0 Play Time 00:11:57 Cumulative 22.5 hours Start 2024.04.21 @ 23:03:02 End 2024.04.21 @ 23:11:51 Sessions 1 Manual Loads 0 Difficulty Rogue Special Mode None Game No. 24 Rogue 9 Adventurer 11 Explorer 4 Win Type - Total 1 Types 1/0/0/0/0/0/0/0/0 Lore% 28 Gallery% 29 Achievement% 29 Wizard Run 0 Options --------- Layout 1 ASCII 0 Keyboard 0 Movement Numpad Keybinds 0 Fullscreen 1 Font 20/SmallcapsGlow Map View 54x42 Zoom Use 0% Tactical HUD 1 Map Filters NONE Filters NONE Steam 1 RUN: fc3e8bef-acce-4673-8cfb-6ddd0c42cbb0